Cogmind - Beta 17 @@@ ROGUE MODE // 2026.06.29 @ 06:29:12 Player: nnnnsk Result: Destroyed by HK-EQD(R) with Subdweller Beam Cannon Performance ------------- Evolutions (0) 0 Regions Visited (2) 400 Robots Destroyed (20) 100 Value Destroyed (484) 484 Prototype IDs (0) 0 Alien Tech Used (0) 0 Bonus (0) 0 TOTAL SCORE: 984 Bonus ------- None Cogmind --------- Core Integrity 0/250 Matter 270/300 Energy 250/250 System Corruption 0% Temperature Cool (9) Movement Treading (160) Location -10/Subcaves Parts ------- > --- POWER (1) -------- Ion Engine > --- PROPULSION (2) --- Light Treads Light Treads > --- UTILITY (2) ------ Small Storage Unit Improved Terrain Scanner > --- WEAPON (2) ------- Medium Laser Light Cannon > --- INVENTORY (8) ---- Ion Engine Aluminum Leg Sensor Array Small Laser Grenade Launcher Datajack Mining Laser Peak State ------------ > --- POWER ------------ Ion Engine > --- PROPULSION ------- Light Treads Light Treads > --- UTILITY ---------- Small Storage Unit Improved Terrain Scanner > --- WEAPON ----------- Small Laser Light Assault Rifle > --- INVENTORY -------- Ion Engine Aluminum Leg Aluminum Leg Compact Wheel Compact Wheel EM Pulse Gun [Rating: 9] Favorites ----------- Power Ion Engine Engine Ion Engine Propulsion Light Treads Treads Light Treads Utility Small Storage Unit Device Improved Terrain Scanner Storage Small Storage Unit Weapon Light Cannon Energy Gun Small Laser Ballistic Gun Light Assault Rifle Ballistic Cannon Light Cannon Launcher Grenade Launcher Build | -11 -10 -10 ------- Run | Yrd Mat Sub Slots Evolved . | . . . Power . | . . . Propulsion . | . . . Utility . | . . . Weapon . | . . . Parts Attached 12 | 8 3 1 Power 1 | 1 . . Engine 1 | 1 . . Core . | . . . Reactor . | . . . Propulsion 3 | 2 1 . Treads 3 | 2 1 . Leg . | . . . Wheel . | . . . Hover . | . . . Flight . | . . . Utility 2 | 2 . . Device 1 | 1 . . Storage 1 | 1 . . Processor . | . . . Hackware . | . . . Protection . | . . . Artifact . | . . . Weapon 6 | 3 2 1 Energy Gun 3 | 2 . 1 Energy Cannon . | . . . Ballistic Gun 1 | 1 . . Ballistic Cannon 1 | . 1 . Launcher 1 | . 1 . Special Weapon . | . . . Impact Weapon . | . . . Slashing Weapon . | . . . Piercing Weapon . | . . . Special Melee Weapon . | . . . Unidentified Prototypes . | . . . Parts Lost . | . . . Power . | . . . Propulsion . | . . . Utility . | . . . Weapon . | . . . Highest Loss Streak . | . . . To Critical Strikes . | . . . Average Backups 7 | 3 7 7 Power . | . 1 1 Propulsion 2 | 2 3 1 Utility . | . . 1 Weapon 3 | . 3 3 Tool/Special . | . . . Unused Backups 8 | . 3 5 Power 1 | . . 1 Propulsion 4 | . 3 1 Utility 1 | . . 1 Weapon 1 | . . 1 Tool/Special 1 | . . 1 Average Slot Usage (%) 98 | . 98 100 Engine 14 | . 14 14 Treads 27 | . 27 28 Device 14 | . 14 14 Storage 14 | . 14 14 Ballistic Cannon 13 | . 13 14 Launcher 12 | . 11 14 Peak Build Rating 9 | 9 9 9 Average Rating 8 | 5 8 9 On Entrance 6 | . 9 9 Avg Prop Armor Cover (%) . | . . . Naked Turns . | . . . Heaviest Build 17 | 13 17 17 Greatest Support 40 | 40 40 40 Greatest Overweight (x) . | . . . Average Overweight (x) . | . . . Largest Inventory Capacity 8 | 8 8 8 Average Capacity 7 | 7 8 8 Most Carried 8 | 6 8 8 Average Carried 7 | 3 7 7 Final Capacity 8 | 8 8 8 Final Carried 8 | 6 8 7 Class Distribution -------------------- 100% | Mutant Dominant Class ---------------- Mutant | -10/Materials Mutant | -10/Subcaves Resources | -11 -10 -10 ----------- Run | Yrd Mat Sub Matter Collected 572 | 280 292 . Remotely . | . . . Salvage Created 508 | 150 344 14 Parts 30 | 7 18 5 Haulers Intercepted 1 | . 1 . Recyclers Shooed . | . . . Parts Field Recycled . | . . . Retrieved Matter . | . . . Parts Self-Destructed 1 | . . 1 Prevented . | . . . Parts Restored . | . . . Kills | -11 -10 -10 ------- Run | Yrd Mat Sub Combat Hostiles Destroyed 14 | . 10 4 Cannons 10 | . 10 . AOE 4 | . . 4 Classes Destroyed 6 | 2 3 1 Tunneler 3 | 3 . . Hauler 1 | . 1 . Recycler 1 | 1 . . Watcher 1 | . 1 . Swarmer 4 | . . 4 Grunt 10 | . 10 . Best Kill Streak 4 | 4 3 4 Combat Bots Only 4 | . 3 4 Max Kills in Single Turn 4 | 1 1 4 Gunslinging . | . . . Exploded 4 | . . 4 Melee . | . . . Uniques/NPCs Destroyed . | . . . Combat | -11 -10 -10 -------- Run | Yrd Mat Sub Hostile Shots Fired 89 | . 50 39 Missed 35 | . 17 18 Hits 54 | . 33 21 Projectile 54 | . 33 21 Critical Strikes 1 | . 1 . Damage Taken 724 | . 440 284 Core 261 | . 134 127 Absorbed by Shields . | . . . Regen/Repaired (Parts) 81 | . 81 . Core Remaining (%) 100 | 100 . . Volleys Fired 68 | 6 60 2 Largest 2 | 2 1 1 Hottest 60 | 60 30 30 Shots Fired 74 | 12 60 2 Gun 12 | 12 . . Cannon 59 | . 59 . Launcher 3 | . 1 2 Special . | . . . Kinetic 65 | 6 59 . Thermal 6 | 6 . . Explosive 3 | . 1 2 Electromagnetic . | . . . Robot Hit Streak 9 | 5 9 1 Robot Miss Streak 3 | 2 3 1 Penetration Max . | . . . Secondary Targets . | . . . Shots Hit Robots 45 | 6 38 1 Core Hits 27 | 5 15 7 Critical Kills . | . . . Critical Parts Destroyed . | . . . Critical Strikes 1 | . 1 . Blast 1 | . 1 . Melee Attacks . | . . . Impact . | . . . Slashing . | . . . Piercing . | . . . Sneak Attacks . | . . . Combat Hostiles . | . . . Follow-up Attacks . | . . . Damage Inflicted 934 | 65 705 164 Guns 65 | 65 . . Cannons 705 | . 705 . Explosions 164 | . . 164 Melee . | . . . Ramming . | . . . Kinetic 724 | 19 705 . Thermal 46 | 46 . . Explosive 164 | . . 164 Electromagnetic . | . . . Impact . | . . . Slashing . | . . . Piercing . | . . . Highest Corruption . | . . . Average Corruption . | . . . Corruption Purged . | . . . Corruption Blocked . | . . . Overload Shots . | . . . Overflow Damage 4 | . 4 . Projectiles 4 | . 4 . Explosions . | . . . Melee . | . . . Knockbacks 12 | . 12 . Impact . | . . . Kinetic 11 | . 11 . Secondary 1 | . 1 . Self-Inflicted Damage . | . . . Shots . | . . . Rammed . | . . . Targets Rammed . | . . . Kicked . | . . . Crushed . | . . . Highest Temperature 30 | 20 30 5 Average Temperature 12 | 14 12 5 Received Heat Transfer 387 | . 270 117 Siege Activations . | . . . Martial Activations . | . . . Shielding Activations . | . . . Robots Disrupted . | . . . Combat Hostiles . | . . . Robots Corrupted . | . . . Combat Hostiles . | . . . Parts Fried . | . . . Impact Corruptions . | . . . Robots Melted . | . . . Combat Hostiles . | . . . Parts Melted . | . . . Heat Transferred 100 | 100 . . Parts Sabotaged . | . . . Parts Stolen . | . . . Parts Stripped . | . . . Power Chain Reactions . | . . . Alert | -11 -10 -10 ------- Run | Yrd Mat Sub Maximum Alert Level . | . . . Low Security (%) 100 | 100 100 . Level 1 . | . . . Level 2 . | . . . Level 3 . | . . . Level 4 . | . . . Level 5 . | . . . High Security . | . . . Max Security . | . . . Peak Influence 117 | 15 117 . Initial . | . . . Average 38 | 2 43 . Influence Increases 432 | 20 332 80 Destroy 0b10 Robot/C 280 | . 200 80 Destroy 0b10 Robot/NC 30 | 20 10 . Destroy Leader 54 | . 54 . Successful Hack 16 | . 16 . Disable Machine 30 | . 30 . Destroy Structure 7 | . 7 . Lose Combat Pursuer 15 | . 15 . Influence Decreases 352 | 20 314 18 Entered New Map 10 | . . 10 Time Decay 342 | 20 314 8 Squads Dispatched 2 | . 2 . Investigation 1 | . 1 . Extermination . | . . . Reinforcement 1 | . 1 . Assault . | . . . Garrison . | . . . Intercept . | . . . Searches Triggered . | . . . Construction Impeded . | . . . Haulers Reinforced . | . . . Active Scanning Responses . | . . . Cargo Convoy Interrupts . | . . . Stealth | -11 -10 -10 --------- Run | Yrd Mat Sub Distress Signals . | . . . Communications Jammed . | . . . Distress Signals . | . . . Times Spotted 25 | . 18 7 Peak Tracking Total 6 | . 3 6 Tactical Retreats 1 | . 1 . Traps | -11 -10 -10 ------- Run | Yrd Mat Sub Traps Triggered 3 | . 1 2 Indirectly . | . . . Trap Hack Attempts . | . . . Triggered . | . . . Disarmed 3 | . 3 . Reprogrammed . | . . . Reused . | . . . Traps Extracted . | . . . Installed . | . . . Triggered . | . . . Machines | -11 -10 -10 ---------- Run | Yrd Mat Sub Machines Disabled 3 | . 3 . Max in Single Turn 2 | . 2 . Machines Repaired . | . . . Machines Dismantled . | . . . Machines Sabotaged . | . . . Overloaded Fab Kills . | . . . Hacking | -11 -10 -10 --------- Run | Yrd Mat Sub Machines Accessed 6 | . 6 . Terminals 5 | . 5 . Fabricators . | . . . Repair Stations 1 | . 1 . Recycling Units . | . . . Scanalyzers . | . . . Garrison Access . | . . . Total Hacks 26 | . 26 . Successful 14 | . 14 . Failed 12 | . 12 . Catastrophic 2 | . 2 . Database Lockouts . | . . . Manual 15 | . 15 . Terminals 23 | . 23 . Fabricators . | . . . Repair Stations 3 | . 3 . Recycling Units . | . . . Scanalyzers . | . . . Garrison Access . | . . . Terminal Hacks 5 | . 5 . Branch Access Points 1 | . 1 . Terminal Index 1 | . 1 . Locate Traps 1 | . 1 . Disarm Traps 1 | . 1 . Zone Layout 1 | . 1 . Fabricator Hacks . | . . . Repair Station Hacks 2 | . 2 . Scan Component 1 | . 1 . Repair 1 | . 1 . Recycling Unit Hacks . | . . . Scanalyzer . | . . . Garrison Access Hacks . | . . . Unauthorized Hacks 7 | . 7 . Terminals 7 | . 7 . Botnet 2 | . 2 . Skim 5 | . 5 . Fabricators . | . . . Repair Stations . | . . . Recycling Units . | . . . Scanalyzers . | . . . Garrison Access . | . . . Data Cores Recovered . | . . . Used . | . . . Hacking Detections 4 | . 4 . Full Trace Events . | . . . Feedback Events . | . . . Feedback Blocked . | . . . Robot Schematics Acquired . | . . . Robots Built . | . . . Authchips . | . . . Time . | . . . Total Robot Build Rating . | . . . Part Schematics Acquired . | . . . Parts Built . | . . . Authchips . | . . . Time . | . . . Total Part Build Rating . | . . . Part Studies Acquired . | . . . Parts Repaired 1 | . 1 . Time 26 | . 26 . Parts Recycled . | . . . Recycled Matter . | . . . Retrieved Matter . | . . . Retrieved Components . | . . . Parts Scanalyzed . | . . . Part Schematics Acquired . | . . . Parts Damaged . | . . . Bothacking | -11 -10 -10 ------------ Run | Yrd Mat Sub Used RIF Installer . | . . . Robots Hacked . | . . . Non-combat . | . . . Combat . | . . . Robot Hacks Applied . | . . . Relay Couplers Released . | . . . Fabnet Peak Effective % . | . . . Robots Rewired . | . . . Allies Hacked . | . . . Hacks Repelled . | . . . Allies | -11 -10 -10 -------- Run | Yrd Mat Sub Total Allies . | . . . Largest Group . | . . . Highest-Rated Group . | . . . Highest-Rated Ally . | . . . Total Orders . | . . . Ally Attacks . | . . . Total Damage . | . . . Kills . | . . . Allies Corrupted . | . . . Allies Melted . | . . . Intel | -11 -10 -10 ------- Run | Yrd Mat Sub Active Infowar (turns) 1109 | 17 884 208 Terrain 1109 | 17 884 208 Robot Analysis Total . | . . . Derelict Logs Recovered . | . . . Drone Launches . | . . . Drone Recoveries . | . . . Exploration | -11 -10 -10 ------------- Run | Yrd Mat Sub Turns Passed 1215 | 123 884 208 Spaces Moved 555 | 58 386 111 Core 3 | 3 . . Treads 552 | 55 386 111 Legs . | . . . Wheels . | . . . Hover . | . . . Flight . | . . . Fastest Speed 50 | 50 160 160 Average Speed 159 | 154 160 160 Slowest Speed 160 | 160 160 160 Overloaded Moves . | . . . Propulsion Burnouts . | . . . Robots Hopped . | . . . Potential Cave-ins . | . . . Cave-ins Triggered . | . . . Exploration Rate (%) 26 | 4 67 8 Regions Visited 2 Branch Regions 1 Pre-discovered Areas . | . . . Known Exits Taken 1 | . 1 . Unknown Exits Taken 1 | 1 . . Scrap Searched . | . . . Spaces Dug . | . . . Terrain Destroyed 21 | . 7 14 Melee . | . . . Projectile . | . . . AOE 21 | . 7 14 Terrain Rammed . | . . . Walls Destroyed . | . . . Machines Disabled . | . . . Actions | -11 -10 -10 --------- Run | Yrd Mat Sub Total 810 | 77 594 139 Wait 158 | . 134 24 Move 553 | 57 385 111 Hop . | . . . Pick Up 12 | 6 6 . Fast Attach 8 | 7 1 . Attach 1 | . 1 . Detach . | . . . Swap 4 | 1 2 1 Drop 6 | . 5 1 Fire 68 | 6 60 2 Melee . | . . . Ram . | . . . Kick . | . . . Crush . | . . . Escape Stasis . | . . . Rewire . | . . . Trap . | . . . Miscellaneous . | . . . Route ------- -11/Scrapyard -10/Materials (discovered 6 exits: Mat x3 / *Min x2 / *Sub) -10/Subcaves (discovered 3 exits: Mat x2 / *Rec) History --------- Turn | Location | Event 6 | -11/Scrapyard | Discovered new exit (range 15) 124 | -11/Scrapyard | Entered Materials 146 | -10/Materials | Discovered new exit (range 12) 318 | -10/Materials | Build established: Mutant 321 | -10/Materials | Repaired Lgt. Treads 623 | -10/Materials | Identified exit to Mines 689 | -10/Materials | Learned location of 2 exits from Subcaves 746 | -10/Materials | Learned location of 1 exit from Storage 826 | -10/Materials | Core integrity fell below 50% 829 | -10/Materials | Identified exit to Materials 855 | -10/Materials | Learned location of 2 exits from Subcaves 871 | -10/Materials | Learned location of 2 exits from Materials 897 | -10/Materials | Identified exit to Subcaves 933 | -10/Materials | Learned Storage trap positions 1008 | -10/Materials | Entered Subcaves 1009 | -10/Subcaves | Approached by a straggling Scientist 1009 | -10/Subcaves | Identified exit to Recycling 1009 | -10/Subcaves | Identified exit to Materials 1187 | -10/Subcaves | Core integrity fell below 20% 1216 | -10/Subcaves | Destroyed by HK-EQD(R) with Subdweller Beam Cannon Last Messages --------------- 01042_ Triggered Piercing Trap. 01042_ Spikes shoot up from the floor. 20-9K3(c): "I think it's somewhere northeast of here" 20-9K3(c): "I think it's somewhere east of here" 01170_ Triggered Shrapnel Trap. 01170_ An expanding cloud of shrapnel blasts out in all directions. 01178_ 20-9K3(c) triggered Piercing Trap. 01178_ Spikes shoot up from the floor. 01178_ 20-9K3(c) destroyed. 01184_ Dropped EM Pulse Gun. 01186_ Tech Extrapolator violently self-destructs. 01197_ Subatomizers dissect the Wheel. 01208_ S-10 Pest destroyed. 01211_ HK-EQD(R) angrily emerges from the Twisted Machinery. 01215_ The unstable cave ceiling collapses. Map ----- +----------------------------------------------------+ | ?????????????????????????????????????????????????? | | ?????????????????????????????????????????????????? | | ?????????????????????????????????????????????????? | | ?????????????????????????????????????????????????? | | ?????????????????????????????????????????????????? | | ?????????????????????????????????????????????????? | | ?????????????????????????????????????????????????? | | ?????????????????????????????????????????????????? | | ?????????????????????????????????????????????????? | | ?????????????????????????????????????????????????? | | ?????????????????????????????????????????????????? | | ?????????????????????????????????????????????????? | | ???????????????????## ???????????????????????????? | | ?????????????????### ???????????????????????????? | | ?????????????????# ???????????????????????????? | | ????????????????? ???????????????????????#???? | | ?????????????????? ???????????????????????????? | | ??????????????????? ???????????????#?????????? ? | | ???????????????????# ???????????????????????????? | | ??????????????????## ####???????????????????###?? | | ???????????????#### R #????????##????????##%### | | ?????????????### ##???#?? """#??????# # | | ??????????# # #< #?? #* "#??????# # | | ???????????# R ## % "#??????## # | | ??????????????## t""#?#?????## | | ?????????????## @ *% >#???????# | | ???????????????# [ t""#??#??##?# | | ???????????????# ## # "#?????#??# | | ??????????#????## ######## "#?#?????## | | ???????????#???# # #???????? """#??????## | | ??????#????????# ?## #???????????#?????#?## ## | | ???????????????# ## #????#??????????????# ##? | | ???????????????# ##??????????????????# #?? | | ???????????????# # #?????????#???????## ### | | ??????????#???# # ## #?????????????????# | | ??????#???????## ## ####???????????????# ## | | ??????????????## ### "#"###???######????##?# # | | ??????????????# ! "" ##### ###???#?# # | | ??????????????# %[ ##???## ## | | ??????????????# = "# ##### ## | | ??????????????### ""### ## # | | ????????????????## ""#"##?## # | | ????????????#????#### ######???# ## | | ????????????????????###????##??# ####### ###? | | ????????????????#??????????#???## ## #??#??###??? | | ???????????????????????#?????#??########?????????? | | ??????????#????????????#???????????????????#?????? | | ????????????????????????????#???????#????##??????? | | ?????????????##????????#?????????????????????????? | | ???????????????#???????????????#???###??????????#? | +----------------------------------------------------+ Best States ------------- Heat Dissipation 25 Energy Generation 10 Energy Capacity 250 Matter Stores 300 Matter Capacity 300 Sight Range 16 Terrain Scan Range 16 Terrain Scan Density 10 Evasion (%) 40 Recoil Reduction 2 Item Schematics ----------------- None Robot Schematics ------------------ None Fabricated ------------ Nothing Repaired ---------- Lgt. Treads | 42% | -10/Materials Studied --------- None Alien Tech Used ----------------- None Achievements -------------- None Challenges ------------ None Game ------ Seed CentriumMissileSource Manual? 0 Play Time 00:13:12 Cumulative 85.5 hours Start 2026.06.29 @ 06:03:52 End 2026.06.29 @ 06:29:12 Sessions 1 Manual Loads 0 Difficulty Rogue Special Mode None Game No. 97 Rogue 90 Adventurer 0 Explorer 7 Win Type - Total 1 Types 1/0/0/0/0/0/0/0/0/0 Lore% 24 Gallery% 35 Achievement% 30 Wizard Run 0 Options --------- Layout 1 ASCII 0 Keyboard 0 Movement Numpad Keybinds 0 Fullscreen 2 Font 32/SmallcapsGlow Map View 50x35 Zoom Use 0% Tactical HUD 1 Map Filters NONE Filters NONE Steam 1 RUN: 303755f6-2c2a-470c-bf29-81706c5bab88